Workbook

Sheet Budżet ślubny
B2: MONIKA + DANIEL ŚLUB
B5: KATEGORIA | C5: SZACOWANY KOSZT | D5: KOSZT RZECZYWISTY | E5: ODCHYLENIE | F5: % BUDŻETU | J5: Nieposortowane | K5: Szacowane koszty | L5: Koszty rzeczywiste | M5: Szacowany koszt — wartość rangi | N5: Ranga | O5: Nr | P5: Posortowane
B6: =P6 -> Wesele | C6: =VLOOKUP(TBL_Podsumowanie[[#This Row],[KATEGORIA]],TBL_DaneKlasyfikacji,2,FALSE) -> 14,500 zł | D6: =IF(VLOOKUP(TBL_Podsumowanie[[#This Row],[KATEGORIA]],TBL_DaneKlasyfikacji,3,FALSE)=0,"",VLOOKUP(TBL_Podsumowanie[[#This Row],[KATEGORIA]],TBL_DaneKlasyfikacji,3,FALSE)) -> 12,800 zł | E6: =IF(OR(TBL_Podsumowanie[[#This Row],[SZACOWANY KOSZT]]="",TBL_Podsumowanie[[#This Row],[KOSZT RZECZYWISTY]]=""),"",TBL_Podsumowanie[[#This Row],[SZACOWANY KOSZT]]-TBL_Podsumowanie[[#This Row],[KOSZT RZECZYWISTY]]) -> 1,700 zł | F6: =TBL_Podsumowanie[[#This Row],[SZACOWANY KOSZT]]/SUM(TBL_Podsumowanie[SZACOWANY KOSZT]) -> 48.7% | J6: Wesele | K6: =TBL_Przyjęcie[[#Totals],[SZACOWANE]] -> 14500 | L6: =TBL_Przyjęcie[[#Totals],[RZECZYWISTE]] -> 12800 | M6: =K6-O6/100 -> 14499.99 | N6: =_xlfn.RANK.AVG(M6,$M$6:$M$15) -> 1 | O6: 1 | P6: =INDEX(TBL_DaneKlasyfikacji,MATCH(O6,$N$6:$N$15,0),1) -> Wesele
B7: =P7 -> Ubiór | C7: =VLOOKUP(TBL_Podsumowanie[[#This Row],[KATEGORIA]],TBL_DaneKlasyfikacji,2,FALSE) -> 4,000 zł | D7: =IF(VLOOKUP(TBL_Podsumowanie[[#This Row],[KATEGORIA]],TBL_DaneKlasyfikacji,3,FALSE)=0,"",VLOOKUP(TBL_Podsumowanie[[#This Row],[KATEGORIA]],TBL_DaneKlasyfikacji,3,FALSE)) -> 2,900 zł | E7: =IF(OR(TBL_Podsumowanie[[#This Row],[SZACOWANY KOSZT]]="",TBL_Podsumowanie[[#This Row],[KOSZT RZECZYWISTY]]=""),"",TBL_Podsumowanie[[#This Row],[SZACOWANY KOSZT]]-TBL_Podsumowanie[[#This Row],[KOSZT RZECZYWISTY]]) -> 1,100 zł | F7: =TBL_Podsumowanie[[#This Row],[SZACOWANY KOSZT]]/SUM(TBL_Podsumowanie[SZACOWANY KOSZT]) -> 13.4% | J7: Ubiór | K7: =TBL_Strój[[#Totals],[SZACOWANE]] -> 4000 | L7: =TBL_Strój[[#Totals],[RZECZYWISTE]] -> 2900 | M7: =K7-O7/100 -> 3999.98 | N7: 2 | O7: 2 | P7: Ubiór
B8: Kwiaty i dekoracje | C8: =VLOOKUP(TBL_Podsumowanie[[#This Row],[KATEGORIA]],TBL_DaneKlasyfikacji,2,FALSE) -> 3,000 zł | D8: =IF(VLOOKUP(TBL_Podsumowanie[[#This Row],[KATEGORIA]],TBL_DaneKlasyfikacji,3,FALSE)=0,"",VLOOKUP(TBL_Podsumowanie[[#This Row],[KATEGORIA]],TBL_DaneKlasyfikacji,3,FALSE)) ->  | E8: =IF(OR(TBL_Podsumowanie[[#This Row],[SZACOWANY KOSZT]]="",TBL_Podsumowanie[[#This Row],[KOSZT RZECZYWISTY]]=""),"",TBL_Podsumowanie[[#This Row],[SZACOWANY KOSZT]]-TBL_Podsumowanie[[#This Row],[KOSZT RZECZYWISTY]]) ->  | F8: =TBL_Podsumowanie[[#This Row],[SZACOWANY KOSZT]]/SUM(TBL_Podsumowanie[SZACOWANY KOSZT]) -> 10.1% | J8: Kwiaty i dekoracje | K8: =TBL_KwiatyOrazDekoracje[[#Totals],[SZACOWANE]] -> 3000 | L8: =TBL_KwiatyOrazDekoracje[[#Totals],[RZECZYWISTE]] -> 0 | M8: 2999.97 | N8: 3 | O8: 3 | P8: Kwiaty i dekoracje
B9: Fotografie i klipy wideo | C9: =VLOOKUP(TBL_Podsumowanie[[#This Row],[KATEGORIA]],TBL_DaneKlasyfikacji,2,FALSE) -> 2,500 zł | D9: =IF(VLOOKUP(TBL_Podsumowanie[[#This Row],[KATEGORIA]],TBL_DaneKlasyfikacji,3,FALSE)=0,"",VLOOKUP(TBL_Podsumowanie[[#This Row],[KATEGORIA]],TBL_DaneKlasyfikacji,3,FALSE)) ->  | E9: =IF(OR(TBL_Podsumowanie[[#This Row],[SZACOWANY KOSZT]]="",TBL_Podsumowanie[[#This Row],[KOSZT RZECZYWISTY]]=""),"",TBL_Podsumowanie[[#This Row],[SZACOWANY KOSZT]]-TBL_Podsumowanie[[#This Row],[KOSZT RZECZYWISTY]]) ->  | F9: =TBL_Podsumowanie[[#This Row],[SZACOWANY KOSZT]]/SUM(TBL_Podsumowanie[SZACOWANY KOSZT]) -> 8.4% | J9: Muzyka | K9: =TBL_Muzyka[[#Totals],[SZACOWANE]] -> 1800 | L9: =TBL_Muzyka[[#Totals],[RZECZYWISTE]] -> 0 | M9: 1799.96 | N9: 5 | O9: 4 | P9: Fotografie i klipy wideo
B10: Muzyka | C10: =VLOOKUP(TBL_Podsumowanie[[#This Row],[KATEGORIA]],TBL_DaneKlasyfikacji,2,FALSE) -> 1,800 zł | D10: =IF(VLOOKUP(TBL_Podsumowanie[[#This Row],[KATEGORIA]],TBL_DaneKlasyfikacji,3,FALSE)=0,"",VLOOKUP(TBL_Podsumowanie[[#This Row],[KATEGORIA]],TBL_DaneKlasyfikacji,3,FALSE)) ->  | E10: =IF(OR(TBL_Podsumowanie[[#This Row],[SZACOWANY KOSZT]]="",TBL_Podsumowanie[[#This Row],[KOSZT RZECZYWISTY]]=""),"",TBL_Podsumowanie[[#This Row],[SZACOWANY KOSZT]]-TBL_Podsumowanie[[#This Row],[KOSZT RZECZYWISTY]]) ->  | F10: =TBL_Podsumowanie[[#This Row],[SZACOWANY KOSZT]]/SUM(TBL_Podsumowanie[SZACOWANY KOSZT]) -> 6.1% | J10: Fotografie i klipy wideo | K10: =TBL_FotografieOrazWideo[[#Totals],[SZACOWANE]] -> 2500 | L10: =TBL_FotografieOrazWideo[[#Totals],[RZECZYWISTE]] -> 0 | M10: 2499.95 | N10: 4 | O10: 5 | P10: Muzyka
B11: Usługi specjalne i prezenty | C11: =VLOOKUP(TBL_Podsumowanie[[#This Row],[KATEGORIA]],TBL_DaneKlasyfikacji,2,FALSE) -> 1,100 zł | D11: =IF(VLOOKUP(TBL_Podsumowanie[[#This Row],[KATEGORIA]],TBL_DaneKlasyfikacji,3,FALSE)=0,"",VLOOKUP(TBL_Podsumowanie[[#This Row],[KATEGORIA]],TBL_DaneKlasyfikacji,3,FALSE)) ->  | E11: =IF(OR(TBL_Podsumowanie[[#This Row],[SZACOWANY KOSZT]]="",TBL_Podsumowanie[[#This Row],[KOSZT RZECZYWISTY]]=""),"",TBL_Podsumowanie[[#This Row],[SZACOWANY KOSZT]]-TBL_Podsumowanie[[#This Row],[KOSZT RZECZYWISTY]]) ->  | F11: =TBL_Podsumowanie[[#This Row],[SZACOWANY KOSZT]]/SUM(TBL_Podsumowanie[SZACOWANY KOSZT]) -> 3.7% | J11: Usługi specjalne i prezenty | K11: =TBL_Upominki[[#Totals],[SZACOWANE]] -> 1100 | L11: =TBL_Upominki[[#Totals],[RZECZYWISTE]] -> 0 | M11: 1099.94 | N11: 6 | O11: 6 | P11: Usługi specjalne i prezenty
B12: =P12 -> Obrączki ślubne | C12: =VLOOKUP(TBL_Podsumowanie[[#This Row],[KATEGORIA]],TBL_DaneKlasyfikacji,2,FALSE) -> 1,100 zł | D12: =IF(VLOOKUP(TBL_Podsumowanie[[#This Row],[KATEGORIA]],TBL_DaneKlasyfikacji,3,FALSE)=0,"",VLOOKUP(TBL_Podsumowanie[[#This Row],[KATEGORIA]],TBL_DaneKlasyfikacji,3,FALSE)) ->  | E12: =IF(OR(TBL_Podsumowanie[[#This Row],[SZACOWANY KOSZT]]="",TBL_Podsumowanie[[#This Row],[KOSZT RZECZYWISTY]]=""),"",TBL_Podsumowanie[[#This Row],[SZACOWANY KOSZT]]-TBL_Podsumowanie[[#This Row],[KOSZT RZECZYWISTY]]) ->  | F12: =TBL_Podsumowanie[[#This Row],[SZACOWANY KOSZT]]/SUM(TBL_Podsumowanie[SZACOWANY KOSZT]) -> 3.7% | J12: Ceremonia | K12: =TBL_CeremoniaŚlubna[[#Totals],[SZACOWANE]] -> 800 | L12: =TBL_CeremoniaŚlubna[[#Totals],[RZECZYWISTE]] -> 0 | M12: 799.93 | N12: 8 | O12: 7 | P12: Obrączki ślubne
B13: Ceremonia | C13: =VLOOKUP(TBL_Podsumowanie[[#This Row],[KATEGORIA]],TBL_DaneKlasyfikacji,2,FALSE) -> 800 zł | D13: =IF(VLOOKUP(TBL_Podsumowanie[[#This Row],[KATEGORIA]],TBL_DaneKlasyfikacji,3,FALSE)=0,"",VLOOKUP(TBL_Podsumowanie[[#This Row],[KATEGORIA]],TBL_DaneKlasyfikacji,3,FALSE)) ->  | E13: =IF(OR(TBL_Podsumowanie[[#This Row],[SZACOWANY KOSZT]]="",TBL_Podsumowanie[[#This Row],[KOSZT RZECZYWISTY]]=""),"",TBL_Podsumowanie[[#This Row],[SZACOWANY KOSZT]]-TBL_Podsumowanie[[#This Row],[KOSZT RZECZYWISTY]]) ->  | F13: =TBL_Podsumowanie[[#This Row],[SZACOWANY KOSZT]]/SUM(TBL_Podsumowanie[SZACOWANY KOSZT]) -> 2.7% | J13: Papeteria | K13: =TBL_Papeteria[[#Totals],[SZACOWANE]] -> 500 | L13: =TBL_Papeteria[[#Totals],[RZECZYWISTE]] -> 0 | M13: 499.92 | N13: 9 | O13: 8 | P13: Ceremonia
B14: Papeteria | C14: =VLOOKUP(TBL_Podsumowanie[[#This Row],[KATEGORIA]],TBL_DaneKlasyfikacji,2,FALSE) -> 500 zł | D14: =IF(VLOOKUP(TBL_Podsumowanie[[#This Row],[KATEGORIA]],TBL_DaneKlasyfikacji,3,FALSE)=0,"",VLOOKUP(TBL_Podsumowanie[[#This Row],[KATEGORIA]],TBL_DaneKlasyfikacji,3,FALSE)) ->  | E14: =IF(OR(TBL_Podsumowanie[[#This Row],[SZACOWANY KOSZT]]="",TBL_Podsumowanie[[#This Row],[KOSZT RZECZYWISTY]]=""),"",TBL_Podsumowanie[[#This Row],[SZACOWANY KOSZT]]-TBL_Podsumowanie[[#This Row],[KOSZT RZECZYWISTY]]) ->  | F14: =TBL_Podsumowanie[[#This Row],[SZACOWANY KOSZT]]/SUM(TBL_Podsumowanie[SZACOWANY KOSZT]) -> 1.7% | J14: Obrączki ślubne | K14: =TBL_Obrączki[[#Totals],[SZACOWANE]] -> 1100 | L14: =TBL_Obrączki[[#Totals],[RZECZYWISTE]] -> 0 | M14: 1099.91 | N14: 7 | O14: 9 | P14: Papeteria
B15: Transport | C15: =VLOOKUP(TBL_Podsumowanie[[#This Row],[KATEGORIA]],TBL_DaneKlasyfikacji,2,FALSE) -> 450 zł | D15: =IF(VLOOKUP(TBL_Podsumowanie[[#This Row],[KATEGORIA]],TBL_DaneKlasyfikacji,3,FALSE)=0,"",VLOOKUP(TBL_Podsumowanie[[#This Row],[KATEGORIA]],TBL_DaneKlasyfikacji,3,FALSE)) ->  | E15: =IF(OR(TBL_Podsumowanie[[#This Row],[SZACOWANY KOSZT]]="",TBL_Podsumowanie[[#This Row],[KOSZT RZECZYWISTY]]=""),"",TBL_Podsumowanie[[#This Row],[SZACOWANY KOSZT]]-TBL_Podsumowanie[[#This Row],[KOSZT RZECZYWISTY]]) ->  | F15: =TBL_Podsumowanie[[#This Row],[SZACOWANY KOSZT]]/SUM(TBL_Podsumowanie[SZACOWANY KOSZT]) -> 1.5% | J15: Transport | K15: =TBL_Transport[[#Totals],[SZACOWANE]] -> 450 | L15: =TBL_Transport[[#Totals],[RZECZYWISTE]] -> 0 | M15: 449.9 | N15: 10 | O15: 10 | P15: Transport
B16: Suma | C16: =SUBTOTAL(109,TBL_Podsumowanie[SZACOWANY KOSZT]) -> 29,750 zł | D16: =SUBTOTAL(109,TBL_Podsumowanie[KOSZT RZECZYWISTY]) -> 15,700 zł | E16: =TBL_Podsumowanie[[#Totals],[SZACOWANY KOSZT]]-TBL_Podsumowanie[[#Totals],[KOSZT RZECZYWISTY]] -> 14,050 zł | F16: =SUBTOTAL(109,TBL_Podsumowanie[% BUDŻETU]) -> 100%

Sheet Szczegóły budżetu
B2: SZCZEGÓŁY BUDŻETU
B4: PRZYJĘCIE | C4: SZACOWANE | D4: RZECZYWISTE | E4: ODCHYLENIE
B5: Miejsce i czynsze | C5: 8,000.00 zł | D5: 7,800.00 zł | E5: =IF(OR(TBL_Przyjęcie[[#This Row],[SZACOWANE]]="",TBL_Przyjęcie[[#This Row],[RZECZYWISTE]]=""),"",TBL_Przyjęcie[[#This Row],[SZACOWANE]]-TBL_Przyjęcie[[#This Row],[RZECZYWISTE]]) -> 200.00 zł
B6: Żywność i obsługa | C6: 4,000.00 zł | D6: 4,200.00 zł | E6: =IF(OR(TBL_Przyjęcie[[#This Row],[SZACOWANE]]="",TBL_Przyjęcie[[#This Row],[RZECZYWISTE]]=""),"",TBL_Przyjęcie[[#This Row],[SZACOWANE]]-TBL_Przyjęcie[[#This Row],[RZECZYWISTE]]) -> -200.00 zł
B7: Napoje | C7: 1,000.00 zł | D7: 800.00 zł | E7: =IF(OR(TBL_Przyjęcie[[#This Row],[SZACOWANE]]="",TBL_Przyjęcie[[#This Row],[RZECZYWISTE]]=""),"",TBL_Przyjęcie[[#This Row],[SZACOWANE]]-TBL_Przyjęcie[[#This Row],[RZECZYWISTE]]) -> 200.00 zł
B8: Ciasto | C8: 1,000.00 zł | E8: =IF(OR(TBL_Przyjęcie[[#This Row],[SZACOWANE]]="",TBL_Przyjęcie[[#This Row],[RZECZYWISTE]]=""),"",TBL_Przyjęcie[[#This Row],[SZACOWANE]]-TBL_Przyjęcie[[#This Row],[RZECZYWISTE]]) -> 
B9: Opłaty różne | C9: 500.00 zł | E9: =IF(OR(TBL_Przyjęcie[[#This Row],[SZACOWANE]]="",TBL_Przyjęcie[[#This Row],[RZECZYWISTE]]=""),"",TBL_Przyjęcie[[#This Row],[SZACOWANE]]-TBL_Przyjęcie[[#This Row],[RZECZYWISTE]]) -> 
B10: WESELE ŁĄCZNIE | C10: =SUBTOTAL(109,TBL_Przyjęcie[SZACOWANE]) -> 14,500.00 zł | D10: =SUBTOTAL(109,TBL_Przyjęcie[RZECZYWISTE]) -> 12,800.00 zł | E10: =TBL_Przyjęcie[[#Totals],[SZACOWANE]]-TBL_Przyjęcie[[#Totals],[RZECZYWISTE]] -> 1,700.00 zł
B13: STRÓJ | C13: SZACOWANE | D13: RZECZYWISTE | E13: ODCHYLENIE
B14: Smoking, garnitur i/lub suknia | C14: 3,000.00 zł | D14: 2,900.00 zł | E14: =IF(OR(TBL_Strój[[#This Row],[SZACOWANE]]="",TBL_Strój[[#This Row],[RZECZYWISTE]]=""),"",TBL_Strój[[#This Row],[SZACOWANE]]-TBL_Strój[[#This Row],[RZECZYWISTE]]) -> 100.00 zł
B15: Zmiany | C15: 100.00 zł | E15: =IF(OR(TBL_Strój[[#This Row],[SZACOWANE]]="",TBL_Strój[[#This Row],[RZECZYWISTE]]=""),"",TBL_Strój[[#This Row],[SZACOWANE]]-TBL_Strój[[#This Row],[RZECZYWISTE]]) -> 
B16: Ozdoba głowy i welon | C16: 200.00 zł | E16: =IF(OR(TBL_Strój[[#This Row],[SZACOWANE]]="",TBL_Strój[[#This Row],[RZECZYWISTE]]=""),"",TBL_Strój[[#This Row],[SZACOWANE]]-TBL_Strój[[#This Row],[RZECZYWISTE]]) -> 
B17: Akcesoria | C17: 100.00 zł | E17: =IF(OR(TBL_Strój[[#This Row],[SZACOWANE]]="",TBL_Strój[[#This Row],[RZECZYWISTE]]=""),"",TBL_Strój[[#This Row],[SZACOWANE]]-TBL_Strój[[#This Row],[RZECZYWISTE]]) -> 
B18: Włosy i makijaż | C18: 500.00 zł | E18: =IF(OR(TBL_Strój[[#This Row],[SZACOWANE]]="",TBL_Strój[[#This Row],[RZECZYWISTE]]=""),"",TBL_Strój[[#This Row],[SZACOWANE]]-TBL_Strój[[#This Row],[RZECZYWISTE]]) -> 
B19: Opłaty różne | C19: 100.00 zł | E19: =IF(OR(TBL_Strój[[#This Row],[SZACOWANE]]="",TBL_Strój[[#This Row],[RZECZYWISTE]]=""),"",TBL_Strój[[#This Row],[SZACOWANE]]-TBL_Strój[[#This Row],[RZECZYWISTE]]) -> 
B20: STROJE ŁĄCZNIE | C20: =SUBTOTAL(109,TBL_Strój[SZACOWANE]) -> 4,000.00 zł | D20: =SUBTOTAL(109,TBL_Strój[RZECZYWISTE]) -> 2,900.00 zł | E20: =TBL_Strój[[#Totals],[SZACOWANE]]-TBL_Strój[[#Totals],[RZECZYWISTE]] -> 1,100.00 zł
B23: KWIATY ORAZ DEKORACJE | C23: SZACOWANE | D23: RZECZYWISTE | E23: ODCHYLENIE
B24: Ustalenia dotyczące kwiatów dla ceremonii | C24: 1,000.00 zł | E24: =IF(OR(TBL_KwiatyOrazDekoracje[[#This Row],[SZACOWANE]]="",TBL_KwiatyOrazDekoracje[[#This Row],[RZECZYWISTE]]=""),"",TBL_KwiatyOrazDekoracje[[#This Row],[SZACOWANE]]-TBL_KwiatyOrazDekoracje[[#This Row],[RZECZYWISTE]]) -> 
B25: Kwiaty i koszyk dziewczynek rozsypujących kwiaty | C25: 500.00 zł | E25: =IF(OR(TBL_KwiatyOrazDekoracje[[#This Row],[SZACOWANE]]="",TBL_KwiatyOrazDekoracje[[#This Row],[RZECZYWISTE]]=""),"",TBL_KwiatyOrazDekoracje[[#This Row],[SZACOWANE]]-TBL_KwiatyOrazDekoracje[[#This Row],[RZECZYWISTE]]) -> 
B26: Poduszka pod obrączkę | C26: 100.00 zł | E26: =IF(OR(TBL_KwiatyOrazDekoracje[[#This Row],[SZACOWANE]]="",TBL_KwiatyOrazDekoracje[[#This Row],[RZECZYWISTE]]=""),"",TBL_KwiatyOrazDekoracje[[#This Row],[SZACOWANE]]-TBL_KwiatyOrazDekoracje[[#This Row],[RZECZYWISTE]]) -> 
B27: Bukiety | C27: 500.00 zł | E27: =IF(OR(TBL_KwiatyOrazDekoracje[[#This Row],[SZACOWANE]]="",TBL_KwiatyOrazDekoracje[[#This Row],[RZECZYWISTE]]=""),"",TBL_KwiatyOrazDekoracje[[#This Row],[SZACOWANE]]-TBL_KwiatyOrazDekoracje[[#This Row],[RZECZYWISTE]]) -> 
B28: Butonierki | C28: 100.00 zł | E28: =IF(OR(TBL_KwiatyOrazDekoracje[[#This Row],[SZACOWANE]]="",TBL_KwiatyOrazDekoracje[[#This Row],[RZECZYWISTE]]=""),"",TBL_KwiatyOrazDekoracje[[#This Row],[SZACOWANE]]-TBL_KwiatyOrazDekoracje[[#This Row],[RZECZYWISTE]]) -> 
B29: Bukieciki do sukienek | C29: 200.00 zł | E29: =IF(OR(TBL_KwiatyOrazDekoracje[[#This Row],[SZACOWANE]]="",TBL_KwiatyOrazDekoracje[[#This Row],[RZECZYWISTE]]=""),"",TBL_KwiatyOrazDekoracje[[#This Row],[SZACOWANE]]-TBL_KwiatyOrazDekoracje[[#This Row],[RZECZYWISTE]]) -> 
B30: Dekoracje na przyjęcie | C30: 300.00 zł | E30: =IF(OR(TBL_KwiatyOrazDekoracje[[#This Row],[SZACOWANE]]="",TBL_KwiatyOrazDekoracje[[#This Row],[RZECZYWISTE]]=""),"",TBL_KwiatyOrazDekoracje[[#This Row],[SZACOWANE]]-TBL_KwiatyOrazDekoracje[[#This Row],[RZECZYWISTE]]) -> 
B31: Oświetlenie | C31: 200.00 zł | E31: =IF(OR(TBL_KwiatyOrazDekoracje[[#This Row],[SZACOWANE]]="",TBL_KwiatyOrazDekoracje[[#This Row],[RZECZYWISTE]]=""),"",TBL_KwiatyOrazDekoracje[[#This Row],[SZACOWANE]]-TBL_KwiatyOrazDekoracje[[#This Row],[RZECZYWISTE]]) -> 
B32: Opłaty różne | C32: 100.00 zł | E32: =IF(OR(TBL_KwiatyOrazDekoracje[[#This Row],[SZACOWANE]]="",TBL_KwiatyOrazDekoracje[[#This Row],[RZECZYWISTE]]=""),"",TBL_KwiatyOrazDekoracje[[#This Row],[SZACOWANE]]-TBL_KwiatyOrazDekoracje[[#This Row],[RZECZYWISTE]]) -> 
B33: KWIATY I DEKORACJE ŁĄCZNIE | C33: =SUBTOTAL(109,TBL_KwiatyOrazDekoracje[SZACOWANE]) -> 3,000.00 zł | D33: =SUBTOTAL(109,TBL_KwiatyOrazDekoracje[RZECZYWISTE]) -> 0.00 zł | E33: =TBL_KwiatyOrazDekoracje[[#Totals],[SZACOWANE]]-TBL_KwiatyOrazDekoracje[[#Totals],[RZECZYWISTE]] -> 3,000.00 zł
B36: MUZYKA | C36: SZACOWANE | D36: RZECZYWISTE | E36: ODCHYLENIE
B37: Muzycy na ceremonię | C37: 700.00 zł | E37: =IF(OR(TBL_Muzyka[[#This Row],[SZACOWANE]]="",TBL_Muzyka[[#This Row],[RZECZYWISTE]]=""),"",TBL_Muzyka[[#This Row],[SZACOWANE]]-TBL_Muzyka[[#This Row],[RZECZYWISTE]]) -> 
B38: Muzycy na czas koktajlu | C38: 300.00 zł | E38: =IF(OR(TBL_Muzyka[[#This Row],[SZACOWANE]]="",TBL_Muzyka[[#This Row],[RZECZYWISTE]]=""),"",TBL_Muzyka[[#This Row],[SZACOWANE]]-TBL_Muzyka[[#This Row],[RZECZYWISTE]]) -> 
B39: Zespół na przyjęcie, DJ lub rozrywka | C39: 200.00 zł | E39: =IF(OR(TBL_Muzyka[[#This Row],[SZACOWANE]]="",TBL_Muzyka[[#This Row],[RZECZYWISTE]]=""),"",TBL_Muzyka[[#This Row],[SZACOWANE]]-TBL_Muzyka[[#This Row],[RZECZYWISTE]]) -> 
B40: Wynajem systemu dźwiękowego lub parkietu | C40: 400.00 zł | E40: =IF(OR(TBL_Muzyka[[#This Row],[SZACOWANE]]="",TBL_Muzyka[[#This Row],[RZECZYWISTE]]=""),"",TBL_Muzyka[[#This Row],[SZACOWANE]]-TBL_Muzyka[[#This Row],[RZECZYWISTE]]) -> 
B41: Opłaty różne | C41: 200.00 zł | E41: =IF(OR(TBL_Muzyka[[#This Row],[SZACOWANE]]="",TBL_Muzyka[[#This Row],[RZECZYWISTE]]=""),"",TBL_Muzyka[[#This Row],[SZACOWANE]]-TBL_Muzyka[[#This Row],[RZECZYWISTE]]) -> 
B42: MUZYKA ŁĄCZNIE | C42: =SUBTOTAL(109,TBL_Muzyka[SZACOWANE]) -> 1,800.00 zł | D42: =SUBTOTAL(109,TBL_Muzyka[RZECZYWISTE]) -> 0.00 zł | E42: =TBL_Muzyka[[#Totals],[SZACOWANE]]-TBL_Muzyka[[#Totals],[RZECZYWISTE]] -> 1,800.00 zł
B45: FOTOGRAFIE ORAZ WIDEO | C45: SZACOWANE | D45: RZECZYWISTE | E45: ODCHYLENIE
B46: Fotografie | C46: 1,000.00 zł | E46: =IF(OR(TBL_FotografieOrazWideo[[#This Row],[SZACOWANE]]="",TBL_FotografieOrazWideo[[#This Row],[RZECZYWISTE]]=""),"",TBL_FotografieOrazWideo[[#This Row],[SZACOWANE]]-TBL_FotografieOrazWideo[[#This Row],[RZECZYWISTE]]) -> 
B47: Rejestracja wideo | C47: 800.00 zł | E47: =IF(OR(TBL_FotografieOrazWideo[[#This Row],[SZACOWANE]]="",TBL_FotografieOrazWideo[[#This Row],[RZECZYWISTE]]=""),"",TBL_FotografieOrazWideo[[#This Row],[SZACOWANE]]-TBL_FotografieOrazWideo[[#This Row],[RZECZYWISTE]]) -> 
B48: Kolejne odbitki i albumy | C48: 500.00 zł | E48: =IF(OR(TBL_FotografieOrazWideo[[#This Row],[SZACOWANE]]="",TBL_FotografieOrazWideo[[#This Row],[RZECZYWISTE]]=""),"",TBL_FotografieOrazWideo[[#This Row],[SZACOWANE]]-TBL_FotografieOrazWideo[[#This Row],[RZECZYWISTE]]) -> 
B49: Opłaty różne | C49: 200.00 zł | E49: =IF(OR(TBL_FotografieOrazWideo[[#This Row],[SZACOWANE]]="",TBL_FotografieOrazWideo[[#This Row],[RZECZYWISTE]]=""),"",TBL_FotografieOrazWideo[[#This Row],[SZACOWANE]]-TBL_FotografieOrazWideo[[#This Row],[RZECZYWISTE]]) -> 
B50: ZDJĘCIA I FILMY ŁĄCZNIE | C50: =SUBTOTAL(109,TBL_FotografieOrazWideo[SZACOWANE]) -> 2,500.00 zł | D50: =SUBTOTAL(109,TBL_FotografieOrazWideo[RZECZYWISTE]) -> 0.00 zł | E50: =TBL_FotografieOrazWideo[[#Totals],[SZACOWANE]]-TBL_FotografieOrazWideo[[#Totals],[RZECZYWISTE]] -> 2,500.00 zł
B53: UPOMINKI | C53: SZACOWANE | D53: RZECZYWISTE | E53: ODCHYLENIE
B54: Prezenty na powitanie | C54: 700.00 zł | E54: =IF(OR(TBL_Upominki[[#This Row],[SZACOWANE]]="",TBL_Upominki[[#This Row],[RZECZYWISTE]]=""),"",TBL_Upominki[[#This Row],[SZACOWANE]]-TBL_Upominki[[#This Row],[RZECZYWISTE]]) -> 
B55: Prezenty podczas przyjęcia | C55: 200.00 zł | E55: =IF(OR(TBL_Upominki[[#This Row],[SZACOWANE]]="",TBL_Upominki[[#This Row],[RZECZYWISTE]]=""),"",TBL_Upominki[[#This Row],[SZACOWANE]]-TBL_Upominki[[#This Row],[RZECZYWISTE]]) -> 
B56: Opłaty różne | C56: 200.00 zł | E56: =IF(OR(TBL_Upominki[[#This Row],[SZACOWANE]]="",TBL_Upominki[[#This Row],[RZECZYWISTE]]=""),"",TBL_Upominki[[#This Row],[SZACOWANE]]-TBL_Upominki[[#This Row],[RZECZYWISTE]]) -> 
B57: UPOMINKI I PREZENTY ŁĄCZNIE | C57: =SUBTOTAL(109,TBL_Upominki[SZACOWANE]) -> 1,100.00 zł | D57: =SUBTOTAL(109,TBL_Upominki[RZECZYWISTE]) -> 0.00 zł | E57: =TBL_Upominki[[#Totals],[SZACOWANE]]-TBL_Upominki[[#Totals],[RZECZYWISTE]] -> 1,100.00 zł
B60: CEREMONIA ŚLUBNA | C60: SZACOWANE | D60: RZECZYWISTE | E60: ODCHYLENIE
B61: Opłata za lokalizację | C61: 500.00 zł | E61: =IF(OR(TBL_CeremoniaŚlubna[[#This Row],[SZACOWANE]]="",TBL_CeremoniaŚlubna[[#This Row],[RZECZYWISTE]]=""),"",TBL_CeremoniaŚlubna[[#This Row],[SZACOWANE]]-TBL_CeremoniaŚlubna[[#This Row],[RZECZYWISTE]]) -> 
B62: Opłata celebransa lub darowizna na kościół | C62: 200.00 zł | E62: =IF(OR(TBL_CeremoniaŚlubna[[#This Row],[SZACOWANE]]="",TBL_CeremoniaŚlubna[[#This Row],[RZECZYWISTE]]=""),"",TBL_CeremoniaŚlubna[[#This Row],[SZACOWANE]]-TBL_CeremoniaŚlubna[[#This Row],[RZECZYWISTE]]) -> 
B63: Opłaty różne | C63: 100.00 zł | E63: =IF(OR(TBL_CeremoniaŚlubna[[#This Row],[SZACOWANE]]="",TBL_CeremoniaŚlubna[[#This Row],[RZECZYWISTE]]=""),"",TBL_CeremoniaŚlubna[[#This Row],[SZACOWANE]]-TBL_CeremoniaŚlubna[[#This Row],[RZECZYWISTE]]) -> 
B64: CEREMONIA ŁĄCZNIE | C64: =SUBTOTAL(109,TBL_CeremoniaŚlubna[SZACOWANE]) -> 800.00 zł | D64: =SUBTOTAL(109,TBL_CeremoniaŚlubna[RZECZYWISTE]) -> 0.00 zł | E64: =TBL_CeremoniaŚlubna[[#Totals],[SZACOWANE]]-TBL_CeremoniaŚlubna[[#Totals],[RZECZYWISTE]] -> 800.00 zł
B67: WYPOSAŻENIE BIURA | C67: SZACOWANE | D67: RZECZYWISTE | E67: ODCHYLENIE
B68: Zapisz datę — karty | C68: 50.00 zł | E68: =IF(OR(TBL_Papeteria[[#This Row],[SZACOWANE]]="",TBL_Papeteria[[#This Row],[RZECZYWISTE]]=""),"",TBL_Papeteria[[#This Row],[SZACOWANE]]-TBL_Papeteria[[#This Row],[RZECZYWISTE]]) -> 
B69: Zaproszenia i RSVP | C69: 100.00 zł | E69: =IF(OR(TBL_Papeteria[[#This Row],[SZACOWANE]]="",TBL_Papeteria[[#This Row],[RZECZYWISTE]]=""),"",TBL_Papeteria[[#This Row],[SZACOWANE]]-TBL_Papeteria[[#This Row],[RZECZYWISTE]]) -> 
B70: Programy | C70: 50.00 zł | E70: =IF(OR(TBL_Papeteria[[#This Row],[SZACOWANE]]="",TBL_Papeteria[[#This Row],[RZECZYWISTE]]=""),"",TBL_Papeteria[[#This Row],[SZACOWANE]]-TBL_Papeteria[[#This Row],[RZECZYWISTE]]) -> 
B71: Karty siedzeń i miejsc | C71: 50.00 zł | E71: =IF(OR(TBL_Papeteria[[#This Row],[SZACOWANE]]="",TBL_Papeteria[[#This Row],[RZECZYWISTE]]=""),"",TBL_Papeteria[[#This Row],[SZACOWANE]]-TBL_Papeteria[[#This Row],[RZECZYWISTE]]) -> 
B72: Karty menu | C72: 50.00 zł | E72: =IF(OR(TBL_Papeteria[[#This Row],[SZACOWANE]]="",TBL_Papeteria[[#This Row],[RZECZYWISTE]]=""),"",TBL_Papeteria[[#This Row],[SZACOWANE]]-TBL_Papeteria[[#This Row],[RZECZYWISTE]]) -> 
B73: Podziękowania — notatki | C73: 50.00 zł | E73: =IF(OR(TBL_Papeteria[[#This Row],[SZACOWANE]]="",TBL_Papeteria[[#This Row],[RZECZYWISTE]]=""),"",TBL_Papeteria[[#This Row],[SZACOWANE]]-TBL_Papeteria[[#This Row],[RZECZYWISTE]]) -> 
B74: Opłaty pocztowe | C74: 50.00 zł | E74: =IF(OR(TBL_Papeteria[[#This Row],[SZACOWANE]]="",TBL_Papeteria[[#This Row],[RZECZYWISTE]]=""),"",TBL_Papeteria[[#This Row],[SZACOWANE]]-TBL_Papeteria[[#This Row],[RZECZYWISTE]]) -> 
B75: Opłaty różne | C75: 100.00 zł | E75: =IF(OR(TBL_Papeteria[[#This Row],[SZACOWANE]]="",TBL_Papeteria[[#This Row],[RZECZYWISTE]]=""),"",TBL_Papeteria[[#This Row],[SZACOWANE]]-TBL_Papeteria[[#This Row],[RZECZYWISTE]]) -> 
B76: PAPETERIA ŁĄCZNIE | C76: =SUBTOTAL(109,TBL_Papeteria[SZACOWANE]) -> 500.00 zł | D76: =SUBTOTAL(109,TBL_Papeteria[RZECZYWISTE]) -> 0.00 zł | E76: =TBL_Papeteria[[#Totals],[SZACOWANE]]-TBL_Papeteria[[#Totals],[RZECZYWISTE]] -> 500.00 zł
B79: OBRĄCZKI ŚLUBNE | C79: SZACOWANE | D79: RZECZYWISTE | E79: ODCHYLENIE
B80: Obrączki ślubne | C80: 1,000.00 zł | E80: =IF(OR(TBL_Obrączki[[#This Row],[SZACOWANE]]="",TBL_Obrączki[[#This Row],[RZECZYWISTE]]=""),"",TBL_Obrączki[[#This Row],[SZACOWANE]]-TBL_Obrączki[[#This Row],[RZECZYWISTE]]) -> 
B81: Akcesoria obrączek | C81: 100.00 zł | E81: =IF(OR(TBL_Obrączki[[#This Row],[SZACOWANE]]="",TBL_Obrączki[[#This Row],[RZECZYWISTE]]=""),"",TBL_Obrączki[[#This Row],[SZACOWANE]]-TBL_Obrączki[[#This Row],[RZECZYWISTE]]) -> 
B82: OBRĄCZKI ŁĄCZNIE | C82: =SUBTOTAL(109,TBL_Obrączki[SZACOWANE]) -> 1,100.00 zł | D82: =SUBTOTAL(109,TBL_Obrączki[RZECZYWISTE]) -> 0.00 zł | E82: =TBL_Obrączki[[#Totals],[SZACOWANE]]-TBL_Obrączki[[#Totals],[RZECZYWISTE]] -> 1,100.00 zł
B85: TRANSPORT | C85: SZACOWANE | D85: RZECZYWISTE | E85: ODCHYLENIE
B86: Wynajem głównego samochodu | C86: 100.00 zł | E86: =IF(OR(TBL_Transport[[#This Row],[SZACOWANE]]="",TBL_Transport[[#This Row],[RZECZYWISTE]]=""),"",TBL_Transport[[#This Row],[SZACOWANE]]-TBL_Transport[[#This Row],[RZECZYWISTE]]) -> 
B87: Wynajem samochodu dla gości | C87: 100.00 zł | E87: =IF(OR(TBL_Transport[[#This Row],[SZACOWANE]]="",TBL_Transport[[#This Row],[RZECZYWISTE]]=""),"",TBL_Transport[[#This Row],[SZACOWANE]]-TBL_Transport[[#This Row],[RZECZYWISTE]]) -> 
B88: Transport dla gości zamiejscowych | C88: 100.00 zł | E88: =IF(OR(TBL_Transport[[#This Row],[SZACOWANE]]="",TBL_Transport[[#This Row],[RZECZYWISTE]]=""),"",TBL_Transport[[#This Row],[SZACOWANE]]-TBL_Transport[[#This Row],[RZECZYWISTE]]) -> 
B89: Parkingowy | C89: 50.00 zł | E89: =IF(OR(TBL_Transport[[#This Row],[SZACOWANE]]="",TBL_Transport[[#This Row],[RZECZYWISTE]]=""),"",TBL_Transport[[#This Row],[SZACOWANE]]-TBL_Transport[[#This Row],[RZECZYWISTE]]) -> 
B90: Opłaty różne | C90: 100.00 zł | E90: =IF(OR(TBL_Transport[[#This Row],[SZACOWANE]]="",TBL_Transport[[#This Row],[RZECZYWISTE]]=""),"",TBL_Transport[[#This Row],[SZACOWANE]]-TBL_Transport[[#This Row],[RZECZYWISTE]]) -> 
B91: PRZEJAZDY ŁĄCZNIE | C91: =SUBTOTAL(109,TBL_Transport[SZACOWANE]) -> 450.00 zł | D91: =SUBTOTAL(109,TBL_Transport[RZECZYWISTE]) -> 0.00 zł | E91: =TBL_Transport[[#Totals],[SZACOWANE]]-TBL_Transport[[#Totals],[RZECZYWISTE]] -> 450.00 zł
